Cogmind - Beta 14 @@@ ROGUE MODE // 2024.08.10 @ 18:43:01 Player: Wesmed Result: Destroyed by S-27 Virus with Autogun Performance ------------- Evolutions (5) 2500 Regions Visited (10) 2000 Robots Destroyed (93) 465 Value Destroyed (3463) 3463 Prototype IDs (23) 460 Alien Tech Used (0) 0 Bonus (548) 548 TOTAL SCORE: 9436 Bonus ------- High Alert Combat Kills 353 Follower Combat Kills 80 Registered with UFD 300 Friendly Fire -185 Cogmind --------- Core Integrity 0/1000 Matter 84/300 Energy 100/100 System Corruption 6% Temperature Hot (267) Movement Core (100) Ox1 Location -5/Upper Caves Parts ------- > --- POWER (2) -------- (None) > --- PROPULSION (4) --- (None) > --- UTILITY (8) ------ Enhanced Optical Array > --- WEAPON (3) ------- Companion Sword > --- INVENTORY (5) ---- A0-MCA's Component Scanner Advanced System Restoration Module KE Penetrator Mini Assault Cannon Peak State ------------ > --- POWER ------------ Improved Deuterium Engine Light Antimatter Reactor > --- PROPULSION ------- Carbon-fiber Leg Improved Titanium Leg Flexi-carbon Leg Overtuned Flexi-carbon Leg > --- UTILITY ---------- Scrap Suit Advanced Heat Sink Improved Cooling System Huge Storage Unit Improved Signal Interpreter 0b10 Decoder Chip [Skirmisher] Makeshift Light Armor Plating > --- WEAPON ----------- Ion Burst Cannon Overtuned Coil Gun Rocket Array > --- INVENTORY -------- Nuclear Core Light Nuclear Core Improved Deuterium Engine Carbon-fiber Leg Armored Wheel Armored Huge Wheel Scrap Suit Makeshift Light Armor Plating Makeshift Light Armor Plating Layered Light Armor Plating A0-MCA's Component Scanner Advanced System Restoration Module Recalibrator Cooled Particle Cannon Overtuned Barrage Gun Enhanced Autogun Precision Assault Rifle Mini Assault Cannon Mini Assault Cannon Remote Datajack Heavy Flail Companion Sword [Rating: 86] Favorites ----------- Power Deuterium Engine Engine Deuterium Engine Power Core Neutrino Core Reactor Light Antimatter Reactor Propulsion Wheel Treads Light Treads Leg Overtuned Flexi-carbon Leg Wheel Wheel Hover Unit Cooled Airjet Utility Improved Signal Interpreter Device Scrap Suit Storage Huge Storage Unit Processor Improved Signal Interpreter Protection Improved Weapon Shielding Weapon Companion Sword Energy Gun Heavy Particle Gun Energy Cannon Cooled Particle Cannon Ballistic Gun Overtuned Coil Gun Ballistic Cannon Bore Cannon Launcher Mini Grenade Launcher Impact Weapon Heavy Flail Slashing Weapon Companion Sword Special Melee Weapon Datajack Build | -11 -10 -9 -9 -8 -7 -7 -7 -7 -5 -5 ------- Run | Yrd Mat Mat Min Mat Fac Sto Rec Scr Fac Upp Slots Evolved 10 | . . 2 . 2 2 . . . 4 . Power 1 | . . . . 1 . . . . . . Propulsion 2 | . . . . 1 . . . . 1 . Utility 6 | . . 2 . . 2 . . . 2 . Weapon 1 | . . . . . . . . . 1 . Parts Attached 170 | 7 2 9 12 17 8 50 9 21 34 1 Power 20 | 1 . 1 1 6 . 7 1 . 3 . Engine 15 | 1 . 1 1 6 . 5 1 . . . Core 4 | . . . . . . 2 . . 2 . Reactor 1 | . . . . . . . . . 1 . Propulsion 31 | 2 . . 4 2 2 5 2 7 7 . Treads 2 | . . . . . . . 2 . . . Leg 8 | . . . . . . . . 3 5 . Wheel 20 | 2 . . 4 2 2 4 . 4 2 . Hover 1 | . . . . . . 1 . . . . Flight . | . . . . . . . . . . . Utility 36 | 2 1 3 3 3 3 9 3 2 7 . Device 17 | 1 . 1 2 . 2 6 1 1 3 . Storage 3 | 1 1 . . . . . 1 . . . Processor 5 | . . 1 . 1 . . . . 3 . Hackware . | . . . . . . . . . . . Protection 11 | . . 1 1 2 1 3 1 1 1 . Artifact . | . . . . . . . . . . . Weapon 83 | 2 1 5 4 6 3 29 3 12 17 1 Energy Gun 14 | 1 1 . 1 1 2 8 . . . . Energy Cannon 16 | . . 2 . 1 . 7 . 3 3 . Ballistic Gun 11 | 1 . 1 . . . 2 1 2 4 . Ballistic Cannon 12 | . . . 1 2 . 3 . 3 3 . Launcher 9 | . . . 1 2 . 2 1 . 3 . Special Weapon . | . . . . . . . . . . . Impact Weapon 14 | . . 1 1 . . 5 1 2 4 . Slashing Weapon 3 | . . . . . . . . 2 . 1 Piercing Weapon . | . . . . . . . . . . . Special Melee Weapon 4 | . . 1 . . 1 2 . . . . Unidentified Prototypes 17 | . . 1 . 3 . 11 1 1 . . Parts Lost 40 | . . 4 1 3 . 16 1 . 15 . Power 10 | . . 2 . 2 . 3 . . 3 . Propulsion 12 | . . 1 . . . 5 . . 6 . Utility 14 | . . 1 1 1 . 6 1 . 4 . Weapon 4 | . . . . . . 2 . . 2 . Highest Loss Streak 9 | . . 3 1 2 . 9 1 . 4 . To Critical Strikes 1 | . . . . . . . . . 1 . Average Slot Usage (%) 87 | . 100 99 98 91 92 85 91 84 82 7 Engine 13 | . 14 10 10 17 15 13 15 15 5 . Treads 6 | . . . . . . . 10 10 . . Leg 2 | . . . . . . . . 1 12 . Wheel 10 | . 28 22 21 19 15 10 7 7 4 . Device 10 | . 14 21 10 9 23 20 9 6 13 . Storage 7 | . 14 11 11 9 7 7 7 7 4 . Processor 7 | . . 11 11 9 7 7 7 7 11 5 Protection 12 | . . . 11 8 7 8 19 16 5 . Energy Gun 2 | . 14 . 4 9 7 6 6 . . . Energy Cannon 2 | . . 11 5 . . 4 . 1 5 . Ballistic Gun 2 | . 14 5 . . . . 4 1 4 . Ballistic Cannon 1 | . . . . 7 6 1 . 1 1 . Slashing Weapon 1 | . . . . . . . . 4 . 2 Peak Build Rating 86 | 7 9 14 18 37 40 50 47 63 86 13 Average Rating 43 | 4 8 12 13 33 39 42 40 48 74 9 On Entrance 23 | . 7 9 11 14 36 38 38 35 58 8 Naked Turns 20 | . . . . . . . . . 20 . Heaviest Build 133 | 13 29 36 39 52 53 66 119 125 133 4 Greatest Support 78 | 20 20 20 20 38 38 38 48 62 78 3 Greatest Overweight (x) 37 | . 1 2 3 1 1 6 5 5 37 1 Average Overweight (x) 1 | . . 1 1 1 1 2 2 2 1 . Largest Inventory Capacity 25 | 8 15 15 15 15 15 15 25 25 25 5 Average Capacity 21 | 7 10 15 15 15 15 15 19 25 24 5 Most Carried 25 | 4 13 15 15 15 15 15 18 25 25 5 Average Carried 19 | 2 8 14 13 14 14 14 15 23 22 4 Final Capacity 25 | 8 15 15 15 15 15 15 25 25 5 5 Final Carried 25 | 4 13 15 15 15 15 15 18 25 5 4 Class Distribution -------------------- 63% | Mutant 20% | Scavenger-Mutant 6% | Scrapper 5% | Scavenger-Skirmisher Dominant Class ---------------- Mutant | -10/Materials Mutant | -9/Materials Mutant | -9/Mines Mutant | -8/Materials Scavenger-Skirmisher | -7/Factory Mutant | -7/Storage Scavenger-Mutant | -7/Recycling Mutant | -7/Scraptown Mutant | -5/Factory Mutant | -5/Upper Caves Resources | -11 -10 -9 -9 -8 -7 -7 -7 -7 -5 -5 ----------- Run | Yrd Mat Mat Min Mat Fac Sto Rec Scr Fac Upp Matter Collected 2922 | 242 62 83 535 296 . 614 172 101 817 . Remotely . | . . . . . . . . . . . Salvage Created 3694 | 27 131 152 124 422 . 1040 376 . 1395 27 Parts 169 | 3 9 14 9 21 . 42 8 . 59 4 Haulers Intercepted 2 | . . . . 1 . 1 . . . . Recyclers Shooed 2 | . . . . . . . 1 . 1 . Parts Field Recycled . | . . . . . . . . . . . Retrieved Matter . | . . . . . . . . . . . Parts Self-Destructed 2 | . . . . . . . . . . 2 Prevented . | . . . . . . . . . . . Kills | -11 -10 -9 -9 -8 -7 -7 -7 -7 -5 -5 ------- Run | Yrd Mat Mat Min Mat Fac Sto Rec Scr Fac Upp Combat Hostiles Destroyed 84 | . 5 4 15 11 . 20 . . 28 1 Melee 3 | . . . . . . 2 . . . 1 Guns 31 | . 5 2 2 4 . 11 . . 7 . Cannons 24 | . . 2 1 6 . 5 . . 10 . AOE 22 | . . . 12 1 . . . . 9 . Classes Destroyed 13 | 1 2 1 1 4 . 1 2 . 1 . Worker 6 | . . . . . . . . . 6 . Builder 4 | . . . . . . . 1 . 3 . Tunneler 2 | 1 . . 1 . . . . . . . Hauler 2 | . . . . 1 . 1 . . . . Recycler 4 | . . . . . . . 4 . . . Watcher 1 | . . . . 1 . . . . . . Swarmer 15 | . 3 1 4 3 . 3 . . . 1 Grunt 36 | . 2 1 1 5 . 8 . . 19 . Duelist 2 | . . . . 1 . . . . 1 . Sentry 14 | . . 2 . 1 . 8 . . 3 . Hunter 4 | . . . . 1 . . . . 3 . Programmer 3 | . . . . . . 1 . . 2 . Assembled 11 | . . . 11 . . . . . . . Best Kill Streak 7 | 1 2 2 5 7 . 4 2 . 7 1 Combat Bots Only 6 | . 2 2 5 6 . 4 . . 5 1 Max Kills in Single Turn 4 | 1 1 1 3 2 . 1 1 . 4 1 Gunslinging . | . . . . . . . . . . . Exploded 4 | . . . 3 1 . . . . 4 . Melee 1 | . . . . . . 1 . . . 1 Uniques/NPCs Destroyed . | . . . . . . . . . . . Combat | -11 -10 -9 -9 -8 -7 -7 -7 -7 -5 -5 -------- Run | Yrd Mat Mat Min Mat Fac Sto Rec Scr Fac Upp Hostile Shots Fired 868 | . 9 60 19 102 . 415 . . 219 44 Missed 278 | . 3 14 9 27 . 143 . . 67 15 Damage Taken 8217 | . 59 451 191 943 . 2693 260 . 3167 453 Core 1896 | . 21 50 21 248 . 467 79 . 571 439 Absorbed by Shields . | . . . . . . . . . . . Redirected to Shielding 211 | . . . . 105 . . 46 . 60 . Regen/Repaired (Parts) 253 | . . . . . . . . 118 135 . Core Remaining (%) 69 | 100 91 . 82 54 . . . 22 . . Volleys Fired 228 | 1 8 11 32 32 1 60 10 . 73 . Largest 3 | 1 2 2 2 2 2 2 2 . 3 . Hottest 222 | 50 85 136 98 123 128 165 83 . 222 . Shots Fired 435 | 1 16 22 33 64 2 115 14 . 168 . Gun 199 | 1 16 8 5 32 1 54 14 . 68 . Cannon 211 | . . 14 9 31 1 61 . . 95 . Launcher 25 | . . . 19 1 . . . . 5 . Special . | . . . . . . . . . . . Kinetic 172 | . 8 8 4 29 1 13 4 . 105 . Thermal 238 | 1 8 14 10 34 1 102 10 . 58 . Explosive 24 | . . . 19 . . . . . 5 . Electromagnetic 1 | . . . . 1 . . . . . . Robot Hit Streak 15 | 1 4 5 3 10 1 15 4 . 10 . Robot Miss Streak 7 | . 2 2 5 2 5 6 1 . 7 . Penetration Max 1 | . . . . . . . . . 1 . Secondary Targets 1 | . . . . . . . . . 1 . Max Gunslinging Chain 1 | . . . . . . . . . 1 . Shots Hit Robots 294 | 1 8 17 10 44 5 93 10 . 104 2 Core Hits 215 | 1 6 6 29 18 . 47 4 . 103 1 Critical Kills 4 | . . . 1 . . 2 . . 1 . Critical Parts Destroyed 6 | . . . 1 . . . . . 5 . Critical Strikes 18 | . . . 3 1 . 6 2 . 6 . Burn 7 | . . . 1 . . 4 2 . . . Destroy 6 | . . . 1 . . 1 . . 4 . Blast 1 | . . . . 1 . . . . . . Smash 4 | . . . 1 . . 1 . . 2 . Melee Attacks 48 | . . 7 2 . 4 21 4 . 5 5 Impact 32 | . . 3 2 . . 18 4 . 5 . Slashing 5 | . . . . . . . . . . 5 Piercing . | . . . . . . . . . . . Sneak Attacks 11 | . . 3 1 . 3 3 1 . . . Combat Hostiles . | . . . . . . . . . . . Follow-up Attacks . | . . . . . . . . . . . Damage Inflicted 10854 | 13 105 268 994 980 26 2857 260 . 5276 75 Guns 3163 | 13 105 105 63 445 . 1040 178 . 1214 . Cannons 4478 | . . 123 33 524 26 1629 . . 2143 . Explosions 2609 | . . . 784 11 . . . . 1814 . Melee 592 | . . 40 114 . . 188 82 . 93 75 Ramming 12 | . . . . . . . . . 12 . Kinetic 2526 | . 54 105 13 482 26 80 64 . 1702 . Thermal 5115 | 13 51 123 83 487 . 2589 114 . 1655 . Explosive 2545 | . . . 784 . . . . . 1761 . Electromagnetic 64 | . . . . 11 . . . . 53 . Impact 517 | . . 40 114 . . 188 82 . 93 . Slashing 75 | . . . . . . . . . . 75 Piercing . | . . . . . . . . . . . Highest Corruption 6 | . . . 4 . . 1 5 5 6 6 Average Corruption 3 | . . . 4 . . 1 5 5 2 6 Corruption Purged 1 | . . . . . . 1 . . . . Corruption Blocked . | . . . . . . . . . . . Effects 65 | . . . 11 . . 8 21 9 12 4 Message Errors 13 | . . . . . . 1 4 3 3 2 Matter Fused 13 | . . . 4 . . 3 3 . 2 1 Heat Flow Errors 9 | . . . 1 . . 1 3 3 . 1 Energy Discharges 7 | . . . 2 . . . 2 1 2 . Parts Fused 3 | . . . . . . . 2 . 1 . Data Loss (minor) 10 | . . . 3 . . 1 2 2 2 . Data Loss (major) 2 | . . . . . . . 2 . . . Misfires 3 | . . . . . . 1 1 . 1 . Alerts 4 | . . . 1 . . 1 2 . . . Weapon Failures 1 | . . . . . . . . . 1 . Overload Shots 31 | . . . . . . 24 . . 7 . Effects 3 | . . . . . . 2 . . 1 . Energy Bleed 2 | . . . . . . 2 . . . . Short Circuit 1 | . . . . . . . . . 1 . Overflow Damage 433 | . . . 127 . . 79 42 . 166 19 Projectiles 118 | . . . . . . 79 . . 39 . Explosions 67 | . . . 33 . . . . . 34 . Melee 248 | . . . 94 . . . 42 . 93 19 Knockbacks 23 | . . . 1 9 1 1 1 . 10 . Impact 4 | . . . 1 . . 1 1 . 1 . Kinetic 15 | . . . . 7 1 . . . 7 . Secondary 4 | . . . . 2 . . . . 2 . Self-Inflicted Damage 196 | . . . 53 23 . . . . 120 . Shots 9 | . . . 1 1 . . . . 7 . Rammed 2 | . . . . . . . . . 2 . Targets Rammed 2 | . . . . . . . . . 2 . Kicked . | . . . . . . . . . . . Crushed . | . . . . . . . . . . . Highest Temperature 320 | . 90 198 234 21 9 320 250 280 184 . Average Temperature 70 | . 34 65 58 6 6 82 102 126 60 . Received Heat Transfer 2129 | . 30 120 80 288 . 768 . . 831 12 Effects 1 | . . . . . . . . 1 . . Energy Bleed 1 | . . . . . . . . 1 . . Siege Activations . | . . . . . . . . . . . Robots Corrupted 4 | . . . 1 . . . 1 . 2 . Combat Hostiles 2 | . . . . . . . . . 2 . Parts Fried 7 | . . . 1 . . . 4 . 2 . Impact Corruptions 7 | . . . 3 . . . 2 . 2 . Robots Melted 2 | . . . . . . 2 . . . . Combat Hostiles 2 | . . . . . . 2 . . . . Parts Melted 13 | . . . . 1 . 10 . . 2 . Heat Transferred 7350 | 37 111 222 259 925 . 3527 370 . 1899 . Parts Sabotaged . | . . . . . . . . . . . Parts Stolen . | . . . . . . . . . . . Parts Stripped . | . . . . . . . . . . . Power Chain Reactions . | . . . . . . . . . . . Alert | -11 -10 -9 -9 -8 -7 -7 -7 -7 -5 -5 ------- Run | Yrd Mat Mat Min Mat Fac Sto Rec Scr Fac Upp Peak Influence 619 | 5 196 214 181 440 200 436 156 . 619 . Initial 147 | . 3 82 18 17 147 91 122 . . . Average 204 | . 146 130 74 201 160 262 58 . 423 . Maximum Alert Level 2 | . . 1 . 2 1 2 . . 2 . Low Security (%) 61 | 100 100 91 100 42 85 35 100 . 8 . Level 1 18 | . . 8 . 51 14 51 . . 12 . Level 2 19 | . . . . 5 . 13 . . 78 . Level 3 . | . . . . . . . . . . . Level 4 . | . . . . . . . . . . . Level 5 . | . . . . . . . . . . . High Security . | . . . . . . . . . . . Max Security . | . . . . . . . . . . . Squads Dispatched 21 | . 2 1 . 3 . 6 . . 9 . Investigation 3 | . 1 . . 1 . . . . 1 . Extermination 4 | . . . . . . 2 . . 2 . Reinforcement 12 | . 1 1 . 2 . 2 . . 6 . Assault 2 | . . . . . . 2 . . . . Garrison . | . . . . . . . . . . . Intercept . | . . . . . . . . . . . Searches Triggered . | . . . . . . . . . . . Construction Impeded 4 | . . . . . . . . . 4 . Haulers Reinforced . | . . . . . . . . . . . Active Scanning Responses . | . . . . . . . . . . . Cargo Convoy Interrupts . | . . . . . . . . . . . Stealth | -11 -10 -9 -9 -8 -7 -7 -7 -7 -5 -5 --------- Run | Yrd Mat Mat Min Mat Fac Sto Rec Scr Fac Upp Distress Signals 8 | . . 1 . . . 3 . . 4 . Communications Jammed . | . . . . . . . . . . . Distress Signals . | . . . . . . . . . . . Times Spotted 168 | . 8 18 19 25 3 34 1 . 50 10 Peak Tracking Total 11 | . 3 11 4 8 3 5 1 . 7 6 Tactical Retreats 16 | . 1 1 2 3 . 3 . . 3 3 Traps | -11 -10 -9 -9 -8 -7 -7 -7 -7 -5 -5 ------- Run | Yrd Mat Mat Min Mat Fac Sto Rec Scr Fac Upp Traps Triggered 5 | . 1 . . 1 1 1 . . 1 . Indirectly . | . . . . . . . . . . . Trap Hack Attempts . | . . . . . . . . . . . Triggered . | . . . . . . . . . . . Disarmed . | . . . . . . . . . . . Reprogrammed . | . . . . . . . . . . . Reused . | . . . . . . . . . . . Traps Extracted . | . . . . . . . . . . . Installed . | . . . . . . . . . . . Triggered . | . . . . . . . . . . . Machines | -11 -10 -9 -9 -8 -7 -7 -7 -7 -5 -5 ---------- Run | Yrd Mat Mat Min Mat Fac Sto Rec Scr Fac Upp Machines Disabled 14 | . . . 1 3 . 5 . . 5 . Max in Single Turn 2 | . . . 1 2 . 1 . . 1 . Machines Repaired . | . . . . . . . . . . . Machines Dismantled . | . . . . . . . . . . . Machines Sabotaged . | . . . . . . . . . . . Overloaded Fab Kills . | . . . . . . . . . . . Hacking | -11 -10 -9 -9 -8 -7 -7 -7 -7 -5 -5 --------- Run | Yrd Mat Mat Min Mat Fac Sto Rec Scr Fac Upp Machines Accessed 29 | . 4 . 1 5 3 5 6 3 2 . Terminals 21 | . 3 . 1 5 2 5 5 . . . Fabricators 2 | . . . . . 1 . . . 1 . Repair Stations 1 | . . . . . . . . . 1 . Recycling Units 2 | . 1 . . . . . 1 . . . Scanalyzers . | . . . . . . . . . . . Garrison Access . | . . . . . . . . . . . Total Hacks 65 | . 10 . 2 10 4 9 9 18 3 . Successful 32 | . 4 . . 3 2 3 2 18 . . Failed 33 | . 6 . 2 7 2 6 7 . 3 . Catastrophic 14 | . 1 . 1 3 1 . 6 . 2 . Database Lockouts . | . . . . . . . . . . . Manual 43 | . 10 . 2 10 4 7 9 . 1 . Terminals 40 | . 8 . 2 10 3 9 8 . . . Fabricators 2 | . . . . . 1 . . . 1 . Repair Stations 2 | . . . . . . . . . 2 . Recycling Units 3 | . 2 . . . . . 1 . . . Scanalyzers . | . . . . . . . . . . . Garrison Access . | . . . . . . . . . . . Terminal Hacks 21 | . 1 . . . . 2 . 18 . . Record 17 | . . . . . . . . 17 . . Open Door 3 | . . . . . . 2 . 1 . . Investigation Status 1 | . 1 . . . . . . . . . Fabricator Hacks . | . . . . . . . . . . . Repair Station Hacks . | . . . . . . . . . . . Recycling Unit Hacks . | . . . . . . . . . . . Scanalyzer . | . . . . . . . . . . . Garrison Access Hacks . | . . . . . . . . . . . Unauthorized Hacks 11 | . 3 . . 3 2 1 2 . . . Terminals 9 | . 2 . . 3 2 1 1 . . . Botnet 9 | . 2 . . 3 2 1 1 . . . Fabricators . | . . . . . . . . . . . Repair Stations . | . . . . . . . . . . . Recycling Units 2 | . 1 . . . . . 1 . . . Mask 1 | . 1 . . . . . . . . . Tunnel 1 | . . . . . . . 1 . . . Scanalyzers . | . . . . . . . . . . . Garrison Access . | . . . . . . . . . . . Data Cores Recovered . | . . . . . . . . . . . Used . | . . . . . . . . . . . Hacking Detections 22 | . 4 . 1 4 3 3 5 . 2 . Full Trace Events 1 | . . . . 1 . . . . . . Feedback Events . | . . . . . . . . . . . Feedback Blocked . | . . . . . . . . . . . Robot Schematics Acquired . | . . . . . . . . . . . Robots Built . | . . . . . . . . . . . Authchips . | . . . . . . . . . . . Time . | . . . . . . . . . . . Total Robot Build Rating . | . . . . . . . . . . . Part Schematics Acquired . | . . . . . . . . . . . Parts Built . | . . . . . . . . . . . Authchips . | . . . . . . . . . . . Time . | . . . . . . . . . . . Total Part Build Rating . | . . . . . . . . . . . Parts Repaired . | . . . . . . . . . . . Time . | . . . . . . . . . . . Parts Recycled . | . . . . . . . . . . . Recycled Matter . | . . . . . . . . . . . Retrieved Matter . | . . . . . . . . . . . Retrieved Components . | . . . . . . . . . . . Parts Scanalyzed . | . . . . . . . . . . . Part Schematics Acquired . | . . . . . . . . . . . Parts Damaged . | . . . . . . . . . . . Bothacking | -11 -10 -9 -9 -8 -7 -7 -7 -7 -5 -5 ------------ Run | Yrd Mat Mat Min Mat Fac Sto Rec Scr Fac Upp Used RIF Installer . | . . . . . . . . . . . Robots Hacked 5 | . . 2 . . 2 1 . . . . Non-combat 5 | . . 2 . . 2 1 . . . . Combat . | . . . . . . . . . . . Robot Hacks Applied 6 | . . 2 . . 3 1 . . . . no_distress 3 | . . 1 . . 1 1 . . . . find_chute 2 | . . . . . 2 . . . . . find_recycling 1 | . . 1 . . . . . . . . Relay Couplers Released . | . . . . . . . . . . . Fabnet Peak Effective % . | . . . . . . . . . . . Robots Rewired . | . . . . . . . . . . . Allies Hacked . | . . . . . . . . . . . Hacks Repelled . | . . . . . . . . . . . Allies | -11 -10 -9 -9 -8 -7 -7 -7 -7 -5 -5 -------- Run | Yrd Mat Mat Min Mat Fac Sto Rec Scr Fac Upp Total Allies 5 | . . . 3 . . 2 . . . . Largest Group 3 | . . . 3 . . 2 2 1 1 . Highest-Rated Group 62 | . . . 40 . . 62 62 31 31 . Highest-Rated Ally 31 | . . . 16 . . 31 31 31 31 . Total Orders . | . . . . . . . . . . . Ally Attacks 34 | . . . 20 . . . 13 . 1 . Total Damage 418 | . . . 160 . . . 237 . 21 . Kills 5 | . . . 3 . . . 2 . . . Allies Corrupted . | . . . . . . . . . . . Allies Melted . | . . . . . . . . . . . Intel | -11 -10 -9 -9 -8 -7 -7 -7 -7 -5 -5 ------- Run | Yrd Mat Mat Min Mat Fac Sto Rec Scr Fac Upp Robot Analysis Total . | . . . . . . . . . . . Derelict Logs Recovered 1 | . . . 1 . . . . . . . Drone Launches . | . . . . . . . . . . . Drone Recoveries . | . . . . . . . . . . . Decoded 0b10 Intel 27 | . . . . . . . . . 27 . Garrisons 3 | . . . . . . . . . 3 . Patrols 8 | . . . . . . . . . 8 . Investigations 1 | . . . . . . . . . 1 . Reinforcements 6 | . . . . . . . . . 6 . Guards 9 | . . . . . . . . . 9 . Exploration | -11 -10 -9 -9 -8 -7 -7 -7 -7 -5 -5 ------------- Run | Yrd Mat Mat Min Mat Fac Sto Rec Scr Fac Upp Turns Passed 12591 | 66 278 430 966 635 339 1250 1255 5883 1417 72 Spaces Moved 6360 | 65 259 281 758 476 288 632 413 2387 694 107 Core 186 | 9 . . . . . . . . 70 107 Treads 1672 | . . . . . . . 345 1327 . . Legs 560 | . . . . . . . . 246 314 . Wheels 3942 | 56 259 281 758 476 288 632 68 814 310 . Hover . | . . . . . . . . . . . Flight . | . . . . . . . . . . . Fastest Speed 50 | 50 80 95 95 95 105 105 155 120 50 50 Average Speed 174 | 75 84 95 95 102 105 130 292 244 162 55 Slowest Speed 1900 | 80 95 110 125 105 115 170 320 440 1900 100 Overloaded Moves . | . . . . . . . . . . . Propulsion Burnouts . | . . . . . . . . . . . Robots Hopped . | . . . . . . . . . . . Cave-ins Triggered 1 | . . . . . . . 1 . . . Exploration Rate (%) 44 | 3 31 25 92 47 9 77 71 95 18 19 Regions Visited 10 Branch Regions 5 Pre-discovered Areas 2 | . . . 1 . . . 1 . . . Known Exits Taken 7 | . . 1 1 1 1 1 1 1 . . Unknown Exits Taken 3 | 1 1 . . . . . . . 1 . Scrap Searched 3 | . . . 1 . . . . 2 . . Spaces Dug 9 | . . 2 . . . 1 3 . 3 . Terrain Destroyed 274 | . . 2 136 5 . 18 3 . 110 . Melee 8 | . . 2 . . . 1 3 . 2 . Projectile 84 | . . . 8 5 . 17 . . 54 . AOE 182 | . . . 128 . . . . . 54 . Terrain Rammed . | . . . . . . . . . . . Walls Destroyed . | . . . . . . . . . . . Machines Disabled . | . . . . . . . . . . . Actions | -11 -10 -9 -9 -8 -7 -7 -7 -7 -5 -5 --------- Run | Yrd Mat Mat Min Mat Fac Sto Rec Scr Fac Upp Total 7399 | 76 300 418 966 562 324 917 444 2452 827 113 Wait 391 | . 23 96 143 8 3 109 . . 9 . Move 6350 | 64 258 280 757 475 287 631 412 2386 693 107 Hop . | . . . . . . . . . . . Pick Up 89 | 4 8 9 10 12 5 17 1 17 6 . Fast Attach 56 | 7 . 1 1 6 3 18 4 9 7 . Attach 42 | . . 3 4 4 2 10 2 3 13 1 Detach 17 | . . . . . . 5 4 6 2 . Swap 72 | . 2 5 7 7 3 22 3 9 14 . Drop 96 | . 1 6 10 18 8 24 4 22 3 . Fire 228 | 1 8 11 32 32 1 60 10 . 73 . Melee 48 | . . 7 2 . 4 21 4 . 5 5 Ram 2 | . . . . . . . . . 2 . Kick . | . . . . . . . . . . . Crush . | . . . . . . . . . . . Escape Stasis 8 | . . . . . 8 . . . . . Rewire . | . . . . . . . . . . . Trap . | . . . . . . . . . . . Miscellaneous . | . . . . . . . . . . . Route ------- -11/Scrapyard -10/Materials -9/Materials -9/Mines (discovered 4 exits: *Mat x2 / *Exi / *Zio) -8/Materials -7/Factory -7/Storage -7/Recycling -7/Scraptown (discovered 2 exits: *Fac x2) -5/Factory -5/Upper Caves History --------- Turn | Location | Event 30 | -11/Scrapyard | Discovered new exit (range 15) 67 | -11/Scrapyard | Entered Materials 315 | -10/Materials | Build established: Mutant 334 | -10/Materials | Discovered new exit (range 11) 345 | -10/Materials | Entered another Materials area 345 | -9/Materials | Evolved 2 slots: Utility x2 761 | -9/Materials | Discovered new exit (range 14) 774 | -9/Materials | Identified exit to Mines 775 | -9/Materials | Entered Mines 776 | -9/Mines | Met a Derelict bent on vengeance 801 | -9/Mines | Lost 3 parts (1p1n1u) 808 | -9/Mines | A Derelict revealed a hidden shortcut to a safe place 818 | -9/Mines | Assisted by bots powering up and referring to "LRC-V3" 830 | -9/Mines | Identified exit to Zion 916 | -9/Mines | Assembled infested the area 921 | -9/Mines | Assisted by a Guerilla fighting off Assembled 1365 | -9/Mines | Learned Materials garrison access intel 1385 | -9/Mines | Discovered new exit (range 12) 1395 | -9/Mines | Identified exit to Materials 1401 | -9/Mines | Deemed a non-threat by the Exiles lab entrance 1401 | -9/Mines | Discovered new exit (range 5) 1404 | -9/Mines | Identified exit to Exiles 1563 | -9/Mines | Learned location of Storage (-7) 1608 | -9/Mines | Discovered exit to Materials (range 11) 1741 | -9/Mines | Entered Materials 1741 | -8/Materials | Evolved 2 slots: Power x1, Propulsion x1 1742 | -8/Materials | Loaded intel: 1 garrison access location 2373 | -8/Materials | Discovered new exit (range 4) 2375 | -8/Materials | Identified exit to Factory 2376 | -8/Materials | Entered Factory 2376 | -7/Factory | Evolved 2 slots: Utility x2 2705 | -7/Factory | Discovered new exit (range 9) 2714 | -7/Factory | Identified exit to Storage 2715 | -7/Factory | Entered Storage 2851 | -7/Storage | Found Prototype Launcher 2851 | -7/Storage | Identified Gui. Missile Launcher 3131 | -7/Storage | Found Prototype Launcher 3131 | -7/Storage | Identified Rocket Array 3367 | -7/Storage | Lost 4 parts (1n3u) 3757 | -7/Storage | Core integrity fell below 50% 3818 | -7/Storage | Lost 9 parts (3p1n3u2w) 3877 | -7/Storage | Used back door to open Recycling access 3877 | -7/Storage | Discovered new exit (range 5) 3882 | -7/Storage | Identified exit to Recycling 3914 | -7/Storage | Met a pair of Derelict thieves 3965 | -7/Storage | Entered Recycling 3965 | -7/Recycling | Accompanied by 2 allies 4059 | -7/Recycling | Build established: Scavenger-Mutant 4576 | -7/Recycling | Crushed by falling debris 5132 | -7/Recycling | Scanned before Scraplab entrance 5191 | -7/Recycling | Entered Scraplab 5202 | -7/Recycling | Build established: Mutant 5216 | -7/Recycling | Discovered new exit (range 2) 5216 | -7/Recycling | Identified exit to Scraptown 5220 | -7/Recycling | Entered Scraptown 5220 | -7/Scraptown | Accompanied by 1 ally 5524 | -7/Scraptown | Visited UFD Registry 5524 | -7/Scraptown | Registered with UFD as "Bulletmind" 5953 | -7/Scraptown | Discovered new exit (range 3) 5956 | -7/Scraptown | Identified exit to Factory 5963 | -7/Scraptown | System corruption cleaned by C-Scrubber 6027 | -7/Scraptown | Found Scrap Suit 6032 | -7/Scraptown | Found Scrap Suit 6228 | -7/Scraptown | Visited Junk Repository 6343 | -7/Scraptown | Visited Supply Room 6676 | -7/Scraptown | Build established: Scavenger-Mutant 6710 | -7/Scraptown | Visited Junk Repository 7151 | -7/Scraptown | Visited LU-1G1's Boring Crew 7308 | -7/Scraptown | Visited A0-MCA Data Center 7327 | -7/Scraptown | Given a B- rating by A0-MCA 7337 | -7/Scraptown | Found A0-MCA's Component Scanner 7399 | -7/Scraptown | Visited Research Penetration Think Tank 7527 | -7/Scraptown | Visited Sword Containment 7667 | -7/Scraptown | Visited Infowarlord's Domain 7765 | -7/Scraptown | Visited Abandonware Association 7885 | -7/Scraptown | Build established: Mutant 8059 | -7/Scraptown | Visited Fellowship of the Rings 8146 | -7/Scraptown | Visited SPCMW 8200 | -7/Scraptown | Visited TADAMA 8370 | -7/Scraptown | Discovered exit to Factory (range 11) 8597 | -7/Scraptown | Heard Great Nut preacher, LISTEN AND RECITE! 8789 | -7/Scraptown | Visited Cyclists 8843 | -7/Scraptown | Entered Cyclist Reading Room 8939 | -7/Scraptown | Visited Spacefarers 9141 | -7/Scraptown | Visited Symbiants 9234 | -7/Scraptown | Visited Shadow of the Wyrm 10400 | -7/Scraptown | Visited Modified Component R&D 10715 | -7/Scraptown | Build established: Scrapper 11103 | -7/Scraptown | Entered Factory 11103 | -5/Factory | Accompanied by 1 ally 11103 | -5/Factory | Evolved 4 slots: Propulsion x1, Utility x2, Weapon x1 11914 | -5/Factory | Lost 4 parts (1p2n1u) 12417 | -5/Factory | Lost 4 parts (2n2u) 12452 | -5/Factory | Lost 3 parts (1p1n1w) 12483 | -5/Factory | Released all parts (10) 12489 | -5/Factory | Core integrity fell below 50% 12509 | -5/Factory | Discovered new exit (range 22) 12520 | -5/Factory | Entered Upper Caves 12528 | -5/Upper Caves | Spotted B-75 Beast 12563 | -5/Upper Caves | Core integrity fell below 20% 12592 | -5/Upper Caves | Destroyed by S-27 Virus with Autogun Last Messages --------------- 12483_ Released Cld. Particle Cannon. 12484_ Slammed into P-70 Sage. 12485_ K-01 Serf cleans the Subcomponent Replicator. 12498_ Slammed into K-01 Serf. 12502_ Acquired 103 matter. 12503_ Acquired Enh. Optical Array. 12509_ EXIT=FOUND LOCATION=UNKNOWN GOAL=ESCAPE 12522_ >UYD ZLW:>ILCWFH>,